bitfinex/quotes_BTCUSD_20260215
["timestamp","ask_amount","ask_price","bid_price","bid_amount"]
[1771140301146,0.07084143,70700.0,70693.0,0.07072778]
[1771140301347,0.00012,70700.0,70690.0,0.0560069]
[1771140301590,0.07072911,70693.0,70690.0,0.0560069]
[1771140301802,0.25367528,70699.0,70690.0,0.0560069]
[1771140302001,0.07073036,70691.0,70683.0,0.07073776]
[1771140302435,0.33076584,70693.0,70680.0,0.01605435]
[1771140302635,0.33884,70696.0,70680.0,0.01605435]
[1771140302935,0.33888,70699.0,70686.0,0.28294049]
[1771140303193,0.33888,70699.0,70684.0,0.25666113]
[1771140303194,0.33888,70699.0,70693.0,0.07072754]
[1771140303397,0.33888,70699.0,70681.0,0.0707396]
[1771140303398,0.07073303,70689.0,70681.0,0.0707396]
[1771140303677,0.40149691,70691.0,70684.0,0.07073705]
[1771140303976,0.07072751,70694.0,70680.0,0.01605435]
[1771140304579,0.07072751,70694.0,70686.0,0.07073475]
[1771140304735,0.07072887,70693.0,70686.0,0.07073475]
[1771140304943,0.07072887,70693.0,70686.0,0.01702264]
[1771140305141,0.07072887,70693.0,70686.0,0.07073456]
[1771140305336,0.07072887,70693.0,70686.0,0.02667578]
[1771140305560,0.07072887,70693.0,70685.0,0.07073604]
[1771140305738,0.07072887,70693.0,70678.0,0.28296147]
[1771140305739,0.07073636,70686.0,70669.0,0.0004265]
[1771140305942,0.07073636,70686.0,70684.0,0.07073718]
[1771140305943,0.00043366,70686.0,70684.0,0.07073718]
[1771140306331,0.00043366,70686.0,70685.0,0.07073636]
[1771140306633,0.07073806,70684.0,70675.0,0.07074562]
[1771140306878,0.07073877,70683.0,70675.0,0.07074562]
[1771140307895,0.07074143,70680.0,70672.0,0.07074873]
[1771140308422,0.07074136,70680.0,70676.0,0.0002]
[1771140308583,0.0707425,70679.0,70672.0,0.07074873]
[1771140309395,0.07074137,70680.0,70672.0,0.07074918]
[1771140309606,0.07074066,70681.0,70672.0,0.07074918]
[1771140309804,0.07074215,70680.0,70670.0,0.00012]
[1771140310004,0.07074215,70680.0,70594.0,0.16998452]
[1771140310005,0.02397908,70678.0,70656.0,0.56887352]
[1771140310226,0.02397908,70678.0,70640.0,0.00012]
[1771140310227,0.25367528,70662.0,70640.0,0.00012]
[1771140310484,0.25367528,70659.0,70640.0,0.00012]
[1771140310709,0.00012,70670.0,70653.0,0.25666113]
[1771140310908,0.00012,70680.0,70661.0,0.25666113]
[1771140311183,0.00012,70680.0,70673.0,0.07074837]
[1771140311406,0.07129476,70680.0,70673.0,0.07074837]
[1771140311606,0.07129476,70680.0,70672.0,0.07074926]
[1771140311850,0.07129476,70680.0,70662.0,0.02421844]
[1771140311851,0.28297504,70678.0,70662.0,0.02421844]
[1771140312058,0.3313711,70672.0,70665.0,0.07075578]
[1771140312266,0.3313711,70672.0,70666.0,0.07075531]
[1771140312472,0.3313711,70672.0,70667.0,0.07075435]
[1771140312801,0.3313711,70672.0,70666.0,0.07075509]
[1771140313007,0.3313711,70672.0,70667.0,0.07075392]
[1771140313630,0.07074665,70675.0,70667.0,0.07075392]
[1771140314948,0.07074759,70674.0,70666.0,0.07075509]
[1771140315155,0.0707472,70675.0,70667.0,0.07075432]
[1771140315364,0.07074501,70677.0,70668.0,0.07075262]
[1771140315588,0.07074606,70676.0,70668.0,0.07075316]
[1771140316213,0.07074654,70675.0,70667.0,0.07095433]
[1771140316420,0.33192449,70680.0,70667.0,0.0002]
[1771140316625,0.33192449,70680.0,70664.0,0.07075673]
[1771140316626,0.07075896,70663.0,70660.0,0.00012]
[1771140316831,0.07075037,70671.0,70660.0,0.00012]
[1771140317062,0.33192449,70680.0,70660.0,0.28316156]
[1771140317256,0.07074556,70676.0,70668.0,0.07075271]
[1771140317459,0.07074556,70676.0,70668.0,0.07075269]
[1771140317634,0.07074597,70676.0,70668.0,0.07075269]
[1771140317837,0.33192449,70680.0,70671.0,0.07075016]
[1771140318039,0.0707436,70678.0,70671.0,0.07074982]
[1771140318255,0.07074408,70678.0,70670.0,0.07075107]
[1771140318428,0.07074408,70678.0,70596.0,0.48952352]
[1771140318429,0.26731568,70668.0,70650.0,0.00012]
[1771140318650,0.26731568,70668.0,70643.0,0.070778]
[1771140318651,0.07076855,70653.0,70643.0,0.070778]
[1771140318881,0.3314911,70660.0,70636.0,0.28325993]
[1771140318882,0.07077166,70650.0,70636.0,0.28325993]
[1771140319090,0.3313711,70650.0,70641.0,0.07077968]
[1771140319317,0.3313711,70650.0,70636.0,0.00012]
[1771140319517,0.4021428,70650.0,70638.0,0.07078289]
[1771140319718,0.07077336,70649.0,70639.0,0.07078212]
[1771140319920,0.07077325,70649.0,70640.0,0.07090124]
[1771140320462,0.28311012,70644.0,70636.0,0.00012]
[1771140320697,0.07077647,70645.0,70636.0,0.00012]
[1771140320891,0.07077743,70644.0,70636.0,0.07090521]
[1771140321110,0.0707814,70641.0,70636.0,0.00012]
[1771140321467,0.07078163,70640.0,70636.0,0.00012]
[1771140321668,0.07078061,70641.0,70636.0,0.00012]
[1771140322304,0.07077952,70642.0,70636.0,0.00012]
[1771140323448,0.07077881,70643.0,70636.0,0.00012]
[1771140323655,0.07077948,70642.0,70636.0,0.00012]
[1771140324233,0.07077356,70648.0,70636.0,0.27073596]
[1771140324542,0.07077511,70647.0,70639.0,0.07078178]
[1771140324743,0.07077511,70647.0,70640.0,0.07078133]
[1771140325595,0.0004,70641.0,70636.0,0.00032]
[1771140325776,0.0004,70641.0,70636.0,0.0711054]
[1771140325973,0.0004,70641.0,70636.0,0.00032]
[1771140326353,0.0004,70641.0,70636.0,0.07110525]
[1771140327148,0.07078206,70640.0,70636.0,0.00032]
[1771140327344,0.0004,70641.0,70636.0,0.00032]
[1771140328333,0.07078215,70640.0,70636.0,0.00032]
[1771140328531,0.0004,70641.0,70636.0,0.00032]
[1771140330198,0.0004,70641.0,70636.0,0.07110539]
[1771140330401,0.0004,70641.0,70636.0,0.00032]
[1771140330617,0.0004,70641.0,70636.0,0.07110457]
[1771140330989,0.0004,70641.0,70637.0,0.0707844]
[1771140331402,0.00055312,70650.0,70636.0,0.00032]
[1771140331599,0.40269563,70650.0,70637.0,0.27061596]
[1771140331824,0.40269563,70650.0,70642.0,0.070779]
[1771140332046,0.07077305,70649.0,70641.0,0.0707804]
[1771140332285,0.33192422,70650.0,70636.0,0.00032]
[1771140332439,0.07077678,70645.0,70638.0,0.07078317]
[1771140332634,0.07077341,70649.0,70636.0,0.07110512]
[1771140332875,0.07077908,70643.0,70636.0,0.00032]
[1771140333082,0.02261628,70642.0,70636.0,0.07110463]
[1771140333710,0.09339589,70642.0,70636.0,0.00032]
[1771140334005,0.02261628,70642.0,70637.0,0.07078437]
[1771140334206,0.02261628,70642.0,70636.0,0.07110501]
[1771140334414,0.02261628,70642.0,70636.0,0.00032]
[1771140334838,0.02261628,70642.0,70637.0,0.07078423]
[1771140335040,0.02261628,70642.0,70637.0,0.07078374]
[1771140335190,0.02261628,70642.0,70636.0,0.00032]
[1771140335401,0.0004,70642.0,70636.0,0.00032]
[1771140335604,0.02261628,70641.0,70637.0,0.07078419]
[1771140335769,0.02261628,70641.0,70636.0,0.07110536]
[1771140336172,0.02261628,70641.0,70637.0,0.0707842]
[1771140336373,0.02261628,70641.0,70637.0,0.07078381]
[1771140336777,0.02261628,70641.0,70636.0,0.07110501]
[1771140337382,0.02261628,70641.0,70637.0,0.07078374]
[1771140337585,0.0004,70642.0,70637.0,0.07078374]
[1771140337782,0.0004,70642.0,70638.0,0.07078329]
[1771140337988,0.25,71900.0,70641.0,0.00843146]
[1771140337989,0.13519263,70664.0,70641.0,0.00843146]
[1771140338195,0.00012,70670.0,70645.0,0.27061596]
[1771140338390,0.00012,70670.0,70642.0,0.42952]
[1771140338391,0.0707585,70663.0,70656.0,0.07076451]
[1771140338649,0.07076101,70661.0,70654.0,0.07076709]
[1771140338813,0.09337651,70663.0,70655.0,0.07076632]
[1771140339024,0.09337651,70663.0,70654.0,0.07076709]
[1771140339358,0.02261628,70663.0,70656.0,0.07076513]
[1771140339677,0.09337491,70663.0,70656.0,0.07076513]
[1771140339861,0.02261628,70663.0,70656.0,0.07076513]
[1771140340260,0.00012,70670.0,70650.0,0.3314911]
[1771140340463,0.00012,70670.0,70659.0,0.28304883]
[1771140340666,0.00012,70670.0,70652.0,0.00843146]
[1771140340866,0.07087162,70670.0,70662.0,0.07075877]
[1771140341196,0.07075328,70669.0,70661.0,0.07076012]
[1771140341314,0.07087161,70670.0,70662.0,0.07075854]
[1771140341696,0.00012,70670.0,70663.0,0.07075766]
[1771140341882,0.00012,70670.0,70666.0,0.07075456]
[1771140342038,0.00012,70670.0,70656.0,0.00843146]
[1771140342039,0.07074601,70676.0,70649.0,0.4734459]
[1771140342247,0.07074601,70676.0,70670.0,0.07075088]
[1771140342248,0.00012996,70676.0,70670.0,0.07075088]
[1771140342441,0.00012996,70676.0,70666.0,0.28302151]
[1771140342648,0.00012996,70676.0,70651.0,0.25118261]
[1771140342649,0.00012996,70676.0,70674.0,0.07074699]
[1771140342832,0.00012996,70676.0,70675.0,0.07074637]
[1771140343047,0.00012996,70676.0,70674.0,0.07074699]
[1771140343610,0.00012996,70676.0,70668.0,0.25034863]
[1771140343906,0.0004,70685.0,70678.0,0.07074243]
[1771140344456,0.0004,70685.0,70680.0,0.07074052]
[1771140344651,0.0004,70685.0,70671.0,0.28300031]
[1771140344652,1e-08,70685.0,70674.0,0.28298549]
[1771140344857,1e-08,70685.0,70684.0,0.06044523]
[1771140345078,1e-08,70685.0,70684.0,0.05235523]
[1771140345776,0.02499999,70700.0,70692.0,0.07072922]
[1771140346008,0.09572147,70700.0,70692.0,0.0707289]
[1771140346201,0.02499999,70700.0,70693.0,0.07072813]
[1771140346570,0.0957217,70700.0,70692.0,0.0707289]
[1771140346790,0.07072261,70699.0,70691.0,0.07072951]
[1771140347007,0.0004265,70704.0,70698.0,0.07072315]
[1771140347211,0.07071936,70702.0,70694.0,0.07072643]
[1771140347415,0.07072337,70698.0,70690.0,0.25147894]
[1771140347618,0.09572334,70698.0,70687.0,0.07073376]
[1771140347826,0.07072658,70695.0,70687.0,0.07073376]
[1771140348504,0.07072532,70697.0,70688.0,0.07073297]
[1771140348706,0.0001301,70697.0,70691.0,0.07072988]
[1771140348911,0.0001301,70697.0,70644.0,0.07056957]
[1771140348912,0.02499999,70696.0,70685.0,0.07073632]
[1771140349120,0.07085473,70697.0,70681.0,0.28295859]
[1771140349352,0.0001301,70697.0,70688.0,0.07073328]
[1771140349555,0.07072809,70694.0,70686.0,0.07073491]
[1771140349729,0.0707266,70695.0,70687.0,0.07073422]
[1771140350512,0.07072554,70696.0,70688.0,0.07073302]
[1771140350992,0.07072554,70696.0,70676.0,0.35078008]
[1771140350993,0.07073412,70688.0,70679.0,0.07074167]
[1771140351207,0.07073541,70686.0,70679.0,0.07074167]
[1771140351407,0.07074237,70679.0,70668.0,0.0707526]
[1771140351607,0.56576123,70702.0,70669.0,0.07075149]
[1771140351608,0.07074389,70678.0,70669.0,0.07075149]
[1771140351740,0.07074389,70678.0,70669.0,0.070752]
[1771140351941,0.07074266,70679.0,70670.0,0.07075053]
[1771140352345,0.07074266,70679.0,70670.0,0.07075104]
[1771140352346,0.07074237,70679.0,70670.0,0.07075104]
[1771140352558,0.42487057,70680.0,70671.0,0.07075037]
[1771140352756,0.07073819,70684.0,70675.0,0.07074591]
[1771140352956,0.07073895,70683.0,70675.0,0.07074591]
[1771140353177,0.00012,70680.0,70675.0,0.07074591]
[1771140353386,0.00012,70680.0,70675.0,0.07074552]
[1771140353586,0.07073601,70686.0,70673.0,0.07074837]
[1771140353791,0.07073601,70686.0,70679.0,0.07074223]
[1771140353993,0.3313711,70690.0,70674.0,0.28298805]
[1771140354217,0.07073603,70686.0,70674.0,0.2737325]
[1771140354415,0.07073628,70687.0,70674.0,0.2737325]
[1771140354621,0.07073536,70686.0,70678.0,0.07074257]
[1771140354816,0.07073536,70686.0,70679.0,0.07074234]
[1771140355674,0.07073536,70686.0,70678.0,0.07074306]
[1771140355845,0.07073727,70685.0,70677.0,0.07074257]
[1771140356058,0.07073749,70684.0,70677.0,0.07074257]
[1771140356614,0.07073749,70684.0,70675.0,0.07074603]
[1771140356818,0.07074058,70681.0,70674.0,7e-05]
[1771140357038,0.25006858,70682.0,70674.0,7e-05]
[1771140357260,0.07074522,70677.0,70674.0,7e-05]
[1771140357444,0.07074605,70676.0,70674.0,7e-05]
[1771140357638,0.07074605,70676.0,70670.0,0.00012]
[1771140357860,0.09350533,70675.0,70670.0,0.00012]
[1771140358208,0.02275808,70674.0,70670.0,0.00012]
[1771140358585,0.3435694,70679.0,70671.0,0.07074955]
[1771140358783,0.07073633,70686.0,70670.0,0.00012]
[1771140358996,0.07073767,70684.0,70677.0,0.070744]
[1771140359377,0.28293059,70689.0,70677.0,0.070744]
[1771140359605,0.07073336,70688.0,70673.0,0.25147894]
[1771140359803,0.07073336,70688.0,70679.0,0.07074201]
[1771140359804,0.0707354,70686.0,70679.0,0.07074201]
[1771140360037,0.0004,70685.0,70679.0,0.07074201]
[1771140360378,0.0004,70693.0,70675.0,0.25147894]
[1771140360616,0.0004,70693.0,70678.0,0.28296948]
[1771140360816,0.0004,70695.0,70681.0,0.25147894]
[1771140361018,0.0004,70695.0,70675.0,0.33892]
[1771140361019,0.0004,70695.0,70691.0,0.07073001]
[1771140361440,0.0004,70695.0,70685.0,0.25147894]
[1771140361617,0.0004,70695.0,70685.0,0.53442168]
[1771140361818,0.0004,70695.0,70689.0,0.07073147]
[1771140363092,0.0004,70695.0,70685.0,0.25147894]
[1771140363245,0.07072923,70693.0,70685.0,0.25147894]
[1771140363441,0.07073004,70692.0,70684.0,0.07073641]
[1771140363653,0.07073909,70683.0,70676.0,0.147]
[1771140363851,0.07073968,70682.0,70670.0,0.09072]
[1771140364059,0.07073968,70682.0,70675.0,0.07074573]
[1771140364269,0.07074775,70674.0,70670.0,0.00012]
[1771140364593,0.07074488,70677.0,70670.0,0.00012]
[1771140364746,0.07074619,70677.0,70670.0,0.00012]
[1771140364930,0.07074537,70676.0,70670.0,0.00012]
[1771140365135,0.07074639,70675.0,70670.0,0.00012]
[1771140365732,0.02275808,70686.0,70670.0,0.00012]
[1771140365908,0.33150492,70690.0,70671.0,0.2737325]
[1771140366058,0.07073637,70685.0,70677.0,0.07074354]
[1771140366263,0.33150492,70690.0,70670.0,0.00012]
[1771140366489,0.07074335,70679.0,70671.0,0.07074941]
[1771140366690,0.40224704,70680.0,70670.0,0.00012]
[1771140366893,0.07074073,70681.0,70673.0,0.07074757]
[1771140367099,0.07074168,70680.0,70673.0,0.07074757]
[1771140367299,0.07074321,70679.0,70670.0,0.00012]
[1771140367524,0.40224813,70680.0,70672.0,0.07074848]
[1771140367832,0.33150492,70690.0,70677.0,0.07074344]
[1771140368031,0.07073741,70684.0,70677.0,0.07074344]
[1771140368251,0.07073741,70684.0,70677.0,0.07062344]
[1771140368452,0.07073986,70682.0,70675.0,0.07074595]
[1771140369131,0.07073854,70683.0,70676.0,0.07074536]
[1771140369654,0.07073711,70685.0,70676.0,0.07074536]
[1771140369864,0.07073777,70684.0,70676.0,0.07074536]
[1771140370211,0.07073711,70685.0,70677.0,0.07074404]
[1771140373122,0.07073723,70686.0,70677.0,0.07074404]
[1771140373123,0.07073744,70684.0,70677.0,0.07074404]
[1771140376031,0.07073652,70685.0,70678.0,0.07074321]
[1771140376235,0.28543628,70689.0,70681.0,0.07073939]
[1771140376236,0.02275808,70689.0,70681.0,0.07073939]
[1771140376435,0.16399386,70689.0,70681.0,0.07073939]
[1771140377241,0.14123578,70689.0,70682.0,0.07073894]
[1771140377445,0.14123578,70688.0,70682.0,0.07073894]
[1771140377653,0.07073036,70691.0,70682.0,0.07073894]
[1771140377888,0.14126391,70691.0,70690.0,0.07073136]
[1771140378173,0.0004,70695.0,70689.0,0.07073211]
[1771140378578,0.0004,70695.0,70688.0,0.07073296]
[1771140378772,0.07112654,70695.0,70688.0,0.07073296]
[1771140378975,0.0004,70695.0,70688.0,0.07073296]
[1771140379257,0.07112645,70695.0,70688.0,0.07073296]
[1771140379463,0.0707306,70691.0,70683.0,0.07073768]
[1771140379645,0.33190492,70693.0,70677.0,0.33892]
[1771140379899,0.2626782,70686.0,70673.0,0.0002]
[1771140380080,0.09378157,70684.0,70673.0,0.0002]
[1771140380226,0.09378157,70684.0,70676.0,0.07074468]
[1771140380474,0.33150492,70687.0,70670.0,0.0002]
[1771140380475,0.09379253,70674.0,70670.0,0.0002]
[1771140380682,0.25175757,70678.0,70671.0,0.21774968]
[1771140380907,0.07073936,70683.0,70675.0,0.07074552]
[1771140381119,0.07073702,70685.0,70671.0,0.39881685]
[1771140381354,0.14132838,70686.0,70671.0,0.39881685]
[1771140381355,0.14132838,70686.0,70679.0,0.07074216]
[1771140381558,0.02304421,70687.0,70678.0,0.07074154]
[1771140381766,0.23510755,70687.0,70679.0,0.07074195]
[1771140381986,0.14132823,70686.0,70679.0,0.07074195]
[1771140382210,0.07073584,70686.0,70679.0,0.07074195]
[1771140382427,0.02304421,70687.0,70677.0,0.07074373]
[1771140382656,0.02304421,70687.0,70676.0,0.0707451]
[1771140382870,0.07073948,70682.0,70675.0,0.07074568]
[1771140383254,0.07073784,70684.0,70680.0,0.00012]
[1771140383433,0.07073979,70682.0,70680.0,0.00012]
[1771140384334,0.093784,70682.0,70671.0,0.42114039]
[1771140384542,0.07074237,70679.0,70671.0,0.2088901]
[1771140384800,0.07074344,70678.0,70671.0,0.2088901]
[1771140385000,0.07074237,70679.0,70670.0,0.0002]
[1771140385001,0.02304421,70675.0,70670.0,0.0002]
[1771140385940,0.2626782,70675.0,70665.0,0.0002]
[1771140386137,0.2626782,70675.0,70665.0,0.00032996]
[1771140386138,0.07075277,70669.0,70665.0,0.00032996]
[1771140386391,0.03961677,70668.0,70665.0,0.00032996]
[1771140387615,0.0707483,70674.0,70666.0,0.07075476]
[1771140387816,0.11036582,70673.0,70666.0,0.07075476]
[1771140388116,0.07075038,70671.0,70665.0,0.00032996]
[1771140388277,0.07075213,70670.0,70665.0,0.00032996]
[1771140388613,0.03961677,70671.0,70665.0,0.00032996]
[1771140388961,0.03961677,70671.0,70665.0,0.07108603]
[1771140389207,0.2626782,70675.0,70662.0,0.07095864]
[1771140389208,0.07075838,70663.0,70662.0,1e-08]
[1771140389513,0.07075944,70662.0,70654.0,0.07076646]
[1771140389716,0.03961677,70661.0,70655.0,0.07076554]
[1771140390649,0.07088861,70663.0,70656.0,0.07076528]
[1771140390858,0.00013005,70663.0,70659.0,0.07076154]
[1771140391237,0.00013005,70663.0,70660.0,0.07076137]
[1771140391399,0.00013005,70663.0,70662.0,0.07075938]
[1771140391595,0.40237698,70670.0,70663.0,0.0707576]
[1771140391596,0.00012,70670.0,70663.0,0.0707576]
[1771140391803,0.00012,70670.0,70648.0,0.17104]
[1771140391804,0.00012,70670.0,70666.0,0.07075503]
[1771140392004,0.00012,70670.0,70666.0,0.07088508]
[1771140392199,0.00012,70670.0,70666.0,0.00013005]
[1771140392540,0.00012,70670.0,70666.0,0.07088536]
[1771140392762,0.00012,70670.0,70666.0,0.00013005]
[1771140394005,0.07087212,70670.0,70666.0,0.00013005]
[1771140394437,0.00012,70670.0,70666.0,0.00013005]
[1771140394611,0.07087139,70670.0,70666.0,0.00013005]
[1771140395063,0.00012,70670.0,70666.0,0.00013005]
[1771140396612,0.00012,70670.0,70668.0,0.07075313]
[1771140396745,0.00012,70670.0,70666.0,0.00013005]
[1771140396951,0.00012,70670.0,70666.0,0.07088483]
[1771140397189,0.00012,70670.0,70666.0,0.00013005]
[1771140397619,0.67042492,70680.0,70666.0,0.00013005]
[1771140397620,8e-05,70676.0,70666.0,0.00013005]
[1771140397958,0.07082605,70676.0,70669.0,0.07075213]
[1771140398158,0.07082605,70676.0,70666.0,0.00013005]
[1771140398159,0.05602177,70676.0,70671.0,0.07075019]
[1771140398365,8e-05,70676.0,70674.0,0.07074665]
[1771140398569,0.00012,70680.0,70667.0,0.25181685]
[1771140398804,0.00012,70680.0,70675.0,0.07074562]
[1771140399370,0.00012,70680.0,70677.0,0.07074375]
[1771140399584,0.00012,70680.0,70668.0,0.25181685]
[1771140399783,0.00012,70680.0,70675.0,0.07074574]
[1771140402976,0.00012,70680.0,70675.0,0.07094574]
[1771140403337,0.00012,70680.0,70675.0,0.07094633]
[1771140403807,0.00012,70680.0,70675.0,0.0002]
[1771140404017,0.00012,70680.0,70677.0,0.07074432]
[1771140406791,0.00012,70680.0,70675.0,0.0002]
[1771140406962,0.05606177,70680.0,70675.0,0.0002]
[1771140407139,0.12680377,70680.0,70675.0,0.0002]
[1771140407567,0.12668435,70679.0,70675.0,0.0002]
[1771140407792,0.07074258,70679.0,70675.0,0.0002]
[1771140407983,0.05594177,70678.0,70675.0,0.0002]
[1771140408380,0.00012,70680.0,70675.0,0.0002]
[1771140408593,0.05606177,70680.0,70675.0,0.0002]
[1771140408826,0.12680334,70680.0,70675.0,0.0002]
[1771140409374,0.05606177,70680.0,70676.0,0.07074476]
[1771140409981,0.00012,70680.0,70676.0,0.07074476]
[1771140410154,0.00012,70680.0,70675.0,0.0002]
[1771140410352,0.05921177,70679.0,70675.0,0.0002]
[1771140410758,0.05921177,70679.0,70667.0,0.33912]
[1771140410759,0.07075353,70668.0,70663.0,0.13813997]
[1771140410914,0.05921177,70667.0,70663.0,0.13813997]
[1771140411120,0.05934185,70667.0,70663.0,0.13813997]
[1771140411771,0.05934185,70667.0,70666.0,0.0002]
[1771140412367,0.13009623,70667.0,70666.0,0.0002]
[1771140412577,0.05934185,70667.0,70666.0,0.0002]
[1771140412940,0.13009623,70667.0,70666.0,0.0002]
[1771140414788,0.07075656,70665.0,70660.0,0.00032]
[1771140415489,0.07962168,70661.0,70658.0,0.0002]
[1771140418848,0.00013008,70667.0,70661.0,0.07076038]
[1771140420346,0.25652251,70677.0,70660.0,0.07075954]
[1771140420347,0.00052,70680.0,70660.0,0.2397087]
[1771140420515,0.07126204,70680.0,70673.0,0.07074749]
[1771140420720,0.070743,70679.0,70671.0,0.0707496]
[1771140421060,0.00052,70680.0,70672.0,0.07074933]
[1771140421422,0.05921177,70669.0,70664.0,7e-05]
[1771140421661,0.05921177,70669.0,70650.0,0.09076]
[1771140421662,0.25652251,70669.0,70650.0,0.09076]
[1771140421987,0.05921177,70659.0,70653.0,0.07096833]
[1771140422198,0.05921177,70659.0,70652.0,0.07076922]
[1771140422199,0.07076252,70659.0,70652.0,0.0707694]
[1771140422377,0.05921177,70658.0,70652.0,0.07076939]
[1771140422552,0.07076353,70658.0,70650.0,0.07102136]
[1771140422754,0.05921177,70657.0,70650.0,0.07102136]
[1771140422995,0.05921177,70657.0,70651.0,0.07076942]
[1771140423293,0.05921177,70657.0,70650.0,0.07102136]
[1771140423483,0.28303478,70663.0,70650.0,0.07102136]
[1771140423484,0.07962168,70654.0,70650.0,0.00025008]
[1771140424396,0.25652251,70657.0,70646.0,0.0002]
[1771140424607,0.07962168,70650.0,70646.0,0.0002]
[1771140426386,0.05921177,70651.0,70646.0,0.0002]
[1771140426581,0.05921177,70654.0,70648.0,0.07077337]
[1771140426787,0.07076983,70652.0,70646.0,0.0002]
[1771140427122,0.07076983,70652.0,70648.0,0.07077248]
[1771140427123,0.05921177,70652.0,70648.0,0.07077248]
[1771140427326,0.00012,70660.0,70647.0,0.2395887]
[1771140427530,0.00012,70660.0,70652.0,0.07076904]
[1771140427731,0.00012,70660.0,70655.0,0.07076613]
[1771140428132,0.00012,70660.0,70655.0,0.07076629]
[1771140428331,0.07076836,70654.0,70650.0,0.00012]
[1771140428533,0.07076572,70656.0,70650.0,0.00012]
[1771140428712,0.07962168,70654.0,70650.0,0.00012]
[1771140429104,0.05921177,70653.0,70650.0,0.00012]
[1771140429523,0.0590465,70653.0,70650.0,0.00012]
[1771140429932,0.0590465,70653.0,70652.0,0.0002]
[1771140432006,0.0707694,70652.0,70644.0,0.07077704]
[1771140432216,0.07962168,70651.0,70647.0,0.07077437]
[1771140432418,0.07962168,70651.0,70647.0,0.07077428]
[1771140432635,0.07945646,70651.0,70645.0,0.07077548]
[1771140432842,0.07945646,70651.0,70644.0,0.00013003]
[1771140433044,0.15030446,70656.0,70648.0,0.0707733]
[1771140433919,0.00012,70660.0,70645.0,0.25091267]
[1771140434120,0.00012,70660.0,70651.0,0.25091267]
[1771140434538,0.00012,70660.0,70654.0,0.07076725]
[1771140434937,0.00012,70660.0,70655.0,0.07076611]
[1771140436458,0.00012,70660.0,70656.0,0.07076515]
[1771140436641,0.0004,70667.0,70666.0,0.07075538]
[1771140436840,0.00052,70670.0,70667.0,0.07075352]
[1771140437046,0.00052,70670.0,70667.0,0.07075427]
[1771140437422,0.00052,70670.0,70660.0,0.25091267]
[1771140437423,0.00052,70670.0,70669.0,0.07075238]
[1771140438178,0.09104,70678.0,70673.0,0.07074805]
[1771140438293,0.0002351,70682.0,70667.0,0.32166605]
[1771140438497,0.0002351,70682.0,70666.0,0.33896]
[1771140438498,0.0003652,70682.0,70676.0,0.07074473]
[1771140439262,0.0003652,70682.0,70677.0,0.07074367]
[1771140439467,0.0003652,70682.0,70670.0,0.00012]
[1771140439468,0.00012,70690.0,70678.0,0.33896]
[1771140439687,0.00022429,70690.0,70684.0,0.07073671]
[1771140439966,0.00022429,70690.0,70683.0,0.07073801]
[1771140440425,0.00022429,70690.0,70689.0,0.07073236]
[1771140441812,0.0004,70693.0,70690.0,0.07073063]
[1771140442017,0.0004,70694.0,70689.0,0.07073236]
[1771140442808,0.0004,70694.0,70688.0,0.07073325]
[1771140442990,0.0004,70694.0,70682.0,0.28295518]
[1771140443194,0.0004,70694.0,70683.0,0.28295191]
[1771140443394,0.0004,70694.0,70682.0,0.00010429]
[1771140443594,0.13720754,70693.0,70682.0,0.00010429]
[1771140443830,0.07962168,70691.0,70684.0,0.0707369]
[1771140444024,0.0004,70694.0,70685.0,0.07073614]
[1771140444209,0.13760754,70694.0,70687.0,0.07073428]
[1771140445441,0.0004,70694.0,70688.0,0.07073238]
[1771140445666,0.0004,70694.0,70685.0,0.0707357]
[1771140445872,0.13760754,70694.0,70685.0,0.0707357]
[1771140446028,0.13760754,70694.0,70687.0,0.07073353]
[1771140446563,0.19665406,70694.0,70687.0,0.07073353]
[1771140447163,0.0004,70695.0,70686.0,0.25091267]
[1771140447368,0.0004,70695.0,70692.0,0.07072842]
[1771140448154,0.0004,70695.0,70690.0,0.07073084]
[1771140448993,0.0004,70695.0,70692.0,0.07072842]
[1771140449593,0.0004,70695.0,70691.0,0.07073018]
[1771140449795,0.05904652,70693.0,70682.0,0.00010429]
[1771140449972,0.05904652,70692.0,70682.0,0.00010429]
[1771140450173,0.05904652,70692.0,70685.0,0.0707356]
[1771140452009,0.0707304,70691.0,70684.0,0.07073728]
[1771140452214,0.07073137,70690.0,70683.0,0.070738]
[1771140452433,0.23948416,70691.0,70670.0,0.07111065]
[1771140452586,0.07074098,70681.0,70673.0,0.33896]
[1771140452788,0.13720754,70692.0,70681.0,0.25091267]
[1771140453052,0.07988928,70697.0,70687.0,0.0002]
[1771140453230,0.07072875,70693.0,70687.0,0.0002]
[1771140453432,0.07072943,70692.0,70681.0,0.25091267]
[1771140453633,0.07072943,70692.0,70682.0,0.07073877]
[1771140453918,0.07073036,70691.0,70682.0,0.07073877]
[1771140454273,0.07073197,70690.0,70682.0,0.07073877]
[1771140454438,0.07073197,70690.0,70683.0,0.07073805]
[1771140454636,0.07073036,70691.0,70683.0,0.07073805]
[1771140454840,0.13720754,70690.0,70683.0,0.07073805]
[1771140456214,0.07073314,70689.0,70681.0,0.32165278]
[1771140456893,0.07073314,70689.0,70681.0,0.07074011]
[1771140457093,0.13720754,70688.0,70679.0,0.0002]
[1771140457444,0.07074028,70682.0,70679.0,0.0002]
[1771140457619,0.33171949,70691.0,70673.0,0.13813997]
[1771140457620,0.07074386,70678.0,70673.0,0.13813997]
[1771140457819,0.12979038,70678.0,70673.0,0.13813997]
[1771140458038,0.12979489,70673.0,70658.0,0.13813997]
[1771140458240,0.12979589,70672.0,70670.0,0.0001301]
[1771140458452,0.05904652,70672.0,70670.0,0.0001301]
[1771140458589,0.07075037,70671.0,70670.0,0.0001301]
[1771140458949,0.0707497,70672.0,70670.0,0.0001301]
[1771140459554,0.0707497,70672.0,70668.0,0.00026938]
[1771140459767,0.07075234,70671.0,70662.0,0.07075865]
[1771140459920,0.20795698,70672.0,70664.0,0.07075735]
[1771140460544,0.20795698,70672.0,70665.0,0.0002]
[1771140462134,0.13720754,70672.0,70665.0,0.0002]
[1771140462344,0.13720754,70672.0,70667.0,0.07075358]
[1771140462548,0.20795756,70672.0,70665.0,0.0002]
[1771140462896,0.13720754,70672.0,70667.0,0.07075399]
[1771140463098,0.13720754,70672.0,70666.0,0.07075538]
[1771140463400,0.20795756,70672.0,70665.0,0.0002]
[1771140464264,0.13720754,70672.0,70667.0,0.07075405]
[1771140464460,8e-05,70678.0,70667.0,0.24153434]
[1771140464665,0.07073707,70685.0,70676.0,0.0707446]
[1771140464911,0.0708671,70685.0,70676.0,0.0702446]
[1771140465051,0.00013003,70685.0,70676.0,0.07074343]
[1771140465260,0.00013003,70685.0,70680.0,0.0707413]
[1771140466601,0.07073194,70690.0,70682.0,0.07073863]